[Event "Titled Tuesday Blitz November 29 Late 2022"]
[White "Andreassen, Lars"]
[Black "Vargas Pereda, Jesus Manue"]
[WhiteFideId "1504878"]
[BlackFideId "5115710"]
[WhiteElo "2119"]
[BlackElo "1950"]
[Result "1-0"]
[Round "09"]
[TimeControl "180+1"]
[Date "2022.11.30"]
[WhiteClock "0:00:18"]
[BlackClock "0:00:20"]

1. d4 {[%clk 0:02:59]}  d5 {[%clk 0:02:58]} 2. Nf3 {[%clk 0:02:59]}  Nf6 {[%clk 0:02:57]} 3. Bg5 {[%clk 0:02:58]}  c5 {[%clk 0:02:53]} 4. e3 {[%clk 0:02:57]}  Nc6 {[%clk 0:02:53]} 5. c3 {[%clk 0:02:57]}  Qb6 {[%clk 0:02:51]} 6. Qb3 {[%clk 0:02:56]}  c4 {[%clk 0:02:50]} 7. Qxb6 {[%clk 0:02:56]}  axb6 {[%clk 0:02:50]} 8. Nbd2 {[%clk 0:02:56]}  b5 {[%clk 0:02:50]} 9. Be2 {[%clk 0:02:50]}  e6 {[%clk 0:02:50]} 10. O-O {[%clk 0:02:49]}  b4 {[%clk 0:02:49]} 11. Ne5 {[%clk 0:02:45]}  Be7 {[%clk 0:02:47]} 12. Bxf6 {[%clk 0:02:40]}  gxf6 {[%clk 0:02:37]} 13. Nxc6 {[%clk 0:02:39]}  bxc6 {[%clk 0:02:37]} 14. Rfc1 {[%clk 0:02:33]}  e5 {[%clk 0:02:26]} 15. Nf3 {[%clk 0:02:06]}  bxc3 {[%clk 0:02:23]} 16. Rxc3 {[%clk 0:02:02]}  Bb4 {[%clk 0:02:22]} 17. Rcc1 {[%clk 0:01:59]}  Bg4 {[%clk 0:02:15]} 18. h3 {[%clk 0:01:53]}  Bxf3 {[%clk 0:02:14]} 19. Bxf3 {[%clk 0:01:53]}  Kd7 {[%clk 0:02:13]} 20. Bg4+ {[%clk 0:01:43]}  Kd6 {[%clk 0:02:12]} 21. Rc2 {[%clk 0:01:19]}  Rhb8 {[%clk 0:02:10]} 22. Bf5 {[%clk 0:01:14]}  h6 {[%clk 0:02:09]} 23. g4 {[%clk 0:01:11]}  Ra7 {[%clk 0:02:03]} 24. Kg2 {[%clk 0:01:11]}  Rab7 {[%clk 0:02:03]} 25. Rb1 {[%clk 0:01:09]}  Ba3 {[%clk 0:01:58]} 26. b3 {[%clk 0:01:02]}  cxb3 {[%clk 0:01:58]} 27. axb3 {[%clk 0:01:01]}  Rxb3 {[%clk 0:01:58]} 28. Ra1 {[%clk 0:00:58]}  c5 {[%clk 0:01:40]} 29. dxc5+ {[%clk 0:00:56]}  Bxc5 {[%clk 0:01:40]} 30. Ra6+ {[%clk 0:00:55]}  R8b6 {[%clk 0:01:37]} 31. Ra5 {[%clk 0:00:53]}  R3b5 {[%clk 0:01:36]} 32. Ra8 {[%clk 0:00:53]}  d4 {[%clk 0:01:27]} 33. Rd8+ {[%clk 0:00:50]}  Ke7 {[%clk 0:01:22]} 34. Rd7+ {[%clk 0:00:49]}  Kf8 {[%clk 0:01:20]} 35. Rc7 {[%clk 0:00:46]}  Bd6 {[%clk 0:01:07]} 36. Rc8+ {[%clk 0:00:45]}  Kg7 {[%clk 0:01:07]} 37. exd4 {[%clk 0:00:43]}  exd4 {[%clk 0:01:06]} 38. Rd8 {[%clk 0:00:40]}  Be7 {[%clk 0:00:56]} 39. Rd7 {[%clk 0:00:39]}  Rb7 {[%clk 0:00:54]} 40. Rcc7 {[%clk 0:00:39]}  Rxc7 {[%clk 0:00:52]} 41. Rxc7 {[%clk 0:00:39]}  Bd6 {[%clk 0:00:52]} 42. Rd7 {[%clk 0:00:39]}  Be5 {[%clk 0:00:47]} 43. Be6 {[%clk 0:00:31]}  Rb1 {[%clk 0:00:40]} 44. Rxf7+ {[%clk 0:00:30]}  Kg6 {[%clk 0:00:36]} 45. Rd7 {[%clk 0:00:29]}  h5 {[%clk 0:00:34]} 46. Bf5+ {[%clk 0:00:29]}  Kg5 {[%clk 0:00:34]} 47. Rg7+ {[%clk 0:00:28]}  Kf4 {[%clk 0:00:34]} 48. Rd7 {[%clk 0:00:23]}  Rb2 {[%clk 0:00:31]} 49. Be6 {[%clk 0:00:20]}  hxg4 {[%clk 0:00:30]} 50. hxg4 {[%clk 0:00:21]}  Rd2 {[%clk 0:00:25]} 51. Bf5 {[%clk 0:00:21]}  Bb8 {[%clk 0:00:22]} 52. Rd8 {[%clk 0:00:21]}  Bc7 {[%clk 0:00:22]} 53. Rd7 {[%clk 0:00:21]}  Bb6 {[%clk 0:00:22]} 54. Rd6 {[%clk 0:00:21]}  Bc5 {[%clk 0:00:21]} 55. Rxf6 {[%clk 0:00:20]}  Kg5 {[%clk 0:00:20]} 56. Rg6+ {[%clk 0:00:20]}  Kh4 {[%clk 0:00:20]} 57. Rh6+ {[%clk 0:00:19]}  Kg5 {[%clk 0:00:20]} 58. Rh5+ {[%clk 0:00:19]}  Kf6 {[%clk 0:00:20]} 59. Rh6+ {[%clk 0:00:19]}  Kg5 {[%clk 0:00:20]} 60. Rg6+ {[%clk 0:00:18]}  Kh4 {[%clk 0:00:21]} 61. Rc6 {[%clk 0:00:17]}  Ba7 {[%clk 0:00:20]} 62. Rc7 {[%clk 0:00:17]}  Bb6 {[%clk 0:00:20]} 63. Rh7+ {[%clk 0:00:17]}  Kg5 {[%clk 0:00:20]} 64. Rh5+ {[%clk 0:00:17]}  Kf6 {[%clk 0:00:20]} 65. Rh6+ {[%clk 0:00:17]}  Kg5 {[%clk 0:00:20]} 66. Rxb6 {[%clk 0:00:18]}  d3 {[%clk 0:00:21]} 67. Kg3 {[%clk 0:00:18]}  Rd1 {[%clk 0:00:20]} 68. f4# {[%clk 0:00:18]} 1-0


[Site "https://www.chess.com"]

[Event "Titled Tuesday Blitz November 29 Late 2022"]
[White "Ankerst, Mihael"]
[Black "Graif, William"]
[WhiteFideId "14602369"]
[BlackFideId "2609835"]
[WhiteElo "2323"]
[BlackElo "2205"]
[Result "0-1"]
[Round "09"]
[TimeControl "180+1"]
[Date "2022.11.30"]
[WhiteClock "0:00:02"]
[BlackClock "0:00:08"]

1. e4 {[%clk 0:02:59]}  e5 {[%clk 0:02:59]} 2. Nf3 {[%clk 0:02:58]}  Bc5 {[%clk 0:02:58]} 3. Nc3 {[%clk 0:02:59]}  Nf6 {[%clk 0:02:55]} 4. Nxe5 {[%clk 0:02:57]}  Nc6 {[%clk 0:02:55]} 5. Nxc6 {[%clk 0:02:56]}  dxc6 {[%clk 0:02:56]} 6. Be2 {[%clk 0:02:55]}  h5 {[%clk 0:02:41]} 7. h3 {[%clk 0:02:41]}  Qd4 {[%clk 0:02:35]} 8. Rf1 {[%clk 0:02:31]}  Nxe4 {[%clk 0:02:21]} 9. Nxe4 {[%clk 0:02:28]}  Qxe4 {[%clk 0:02:21]} 10. Rg1 {[%clk 0:02:14]}  Qg6 {[%clk 0:01:24]} 11. d4 {[%clk 0:02:03]}  Bd6 {[%clk 0:01:21]} 12. Bd3 {[%clk 0:01:58]}  Bf5 {[%clk 0:01:17]} 13. Qe2+ {[%clk 0:01:50]}  Kd7 {[%clk 0:01:11]} 14. Bxf5+ {[%clk 0:01:49]}  Qxf5 {[%clk 0:01:11]} 15. Be3 {[%clk 0:01:50]}  Rae8 {[%clk 0:01:06]} 16. O-O-O {[%clk 0:01:48]}  Re6 {[%clk 0:01:00]} 17. Kb1 {[%clk 0:01:46]}  Rhe8 {[%clk 0:01:00]} 18. Qd3 {[%clk 0:01:46]}  Qxd3 {[%clk 0:00:47]} 19. Rxd3 {[%clk 0:01:44]}  Rg6 {[%clk 0:00:42]} 20. g3 {[%clk 0:01:21]}  f5 {[%clk 0:00:37]} 21. Bd2 {[%clk 0:01:14]}  Re2 {[%clk 0:00:26]} 22. Be1 {[%clk 0:01:05]}  Rge6 {[%clk 0:00:18]} 23. Rd1 {[%clk 0:01:03]}  g5 {[%clk 0:00:17]} 24. Kc1 {[%clk 0:00:54]}  g4 {[%clk 0:00:17]} 25. hxg4 {[%clk 0:00:46]}  hxg4 {[%clk 0:00:17]} 26. Rf1 {[%clk 0:00:47]}  f4 {[%clk 0:00:17]} 27. gxf4 {[%clk 0:00:47]}  Bxf4+ {[%clk 0:00:18]} 28. Kb1 {[%clk 0:00:47]}  Kd6 {[%clk 0:00:17]} 29. Bb4+ {[%clk 0:00:40]}  Kd5 {[%clk 0:00:16]} 30. b3 {[%clk 0:00:40]}  Ke4 {[%clk 0:00:15]} 31. Rfe1 {[%clk 0:00:35]}  Kf3 {[%clk 0:00:14]} 32. Rxe2 {[%clk 0:00:34]}  Rxe2 {[%clk 0:00:14]} 33. Be1 {[%clk 0:00:27]}  Bh2 {[%clk 0:00:14]} 34. Kc1 {[%clk 0:00:03]}  Rxe1 {[%clk 0:00:12]} 35. Rxe1 {[%clk 0:00:03]}  Kxf2 {[%clk 0:00:12]} 36. Re7 {[%clk 0:00:02]}  Bf4+ {[%clk 0:00:09]} 37. Kd1 {[%clk 0:00:01]}  g3 {[%clk 0:00:09]} 38. Rf7 {[%clk 0:00:02]}  Kf3 {[%clk 0:00:08]} 0-1


[Site "https://www.chess.com"]

[Event "Titled Tuesday Blitz November 29 Late 2022"]
[White "Arbunic Castro, Giovanna"]
[Black "Fareh, Youness"]
[WhiteFideId "3400549"]
[BlackFideId "9000526"]
[WhiteElo "1934"]
[BlackElo "1836"]
[Result "0-1"]
[Round "09"]
[TimeControl "180+1"]
[Date "2022.11.30"]
[WhiteClock "0:00:01"]
[BlackClock "0:00:34"]

1. e4 {[%clk 0:03:00]}  c5 {[%clk 0:02:57]} 2. g3 {[%clk 0:02:59]}  g6 {[%clk 0:02:55]} 3. Bg2 {[%clk 0:02:59]}  Bg7 {[%clk 0:02:56]} 4. Ne2 {[%clk 0:02:58]}  d6 {[%clk 0:02:56]} 5. c3 {[%clk 0:02:59]}  e6 {[%clk 0:02:57]} 6. O-O {[%clk 0:02:58]}  Ne7 {[%clk 0:02:57]} 7. d4 {[%clk 0:02:58]}  cxd4 {[%clk 0:02:57]} 8. cxd4 {[%clk 0:02:58]}  O-O {[%clk 0:02:57]} 9. Nbc3 {[%clk 0:02:58]}  Nbc6 {[%clk 0:02:55]} 10. Be3 {[%clk 0:02:54]}  a6 {[%clk 0:02:53]} 11. Qd2 {[%clk 0:02:52]}  Bd7 {[%clk 0:02:53]} 12. f4 {[%clk 0:02:52]}  Rc8 {[%clk 0:02:52]} 13. g4 {[%clk 0:02:50]}  f5 {[%clk 0:02:50]} 14. gxf5 {[%clk 0:02:44]}  exf5 {[%clk 0:02:49]} 15. e5 {[%clk 0:02:41]}  dxe5 {[%clk 0:02:49]} 16. fxe5 {[%clk 0:02:40]}  Kh8 {[%clk 0:02:37]} 17. Rad1 {[%clk 0:02:24]}  Be6 {[%clk 0:02:37]} 18. Na4 {[%clk 0:02:16]}  Nd5 {[%clk 0:02:26]} 19. Nc5 {[%clk 0:02:13]}  Qe7 {[%clk 0:02:10]} 20. Nf4 {[%clk 0:02:00]}  Nxf4 {[%clk 0:02:01]} 21. Bxf4 {[%clk 0:01:59]}  Rfd8 {[%clk 0:01:55]} 22. Nxe6 {[%clk 0:01:23]}  Qxe6 {[%clk 0:01:55]} 23. d5 {[%clk 0:01:23]}  Qe8 {[%clk 0:01:54]} 24. e6 {[%clk 0:01:07]}  Nd4 {[%clk 0:01:46]} 25. Rfe1 {[%clk 0:01:00]}  Rc2 {[%clk 0:01:43]} 26. Qxc2 {[%clk 0:00:53]}  Nxc2 {[%clk 0:01:42]} 27. d6 {[%clk 0:00:53]}  Nd4 {[%clk 0:01:37]} 28. d7 {[%clk 0:00:49]}  Qe7 {[%clk 0:01:30]} 29. Bc7 {[%clk 0:00:35]}  Rxd7 {[%clk 0:01:01]} 30. exd7 {[%clk 0:00:27]}  Qxd7 {[%clk 0:01:01]} 31. Be5 {[%clk 0:00:22]}  Bxe5 {[%clk 0:00:56]} 32. Rxe5 {[%clk 0:00:21]}  Nf3+ {[%clk 0:00:56]} 33. Bxf3 {[%clk 0:00:19]}  Qc7 {[%clk 0:00:44]} 34. Red5 {[%clk 0:00:15]}  Qb6+ {[%clk 0:00:44]} 35. Kg2 {[%clk 0:00:13]}  Kg7 {[%clk 0:00:43]} 36. Rd7+ {[%clk 0:00:12]}  Kh6 {[%clk 0:00:43]} 37. b3 {[%clk 0:00:11]}  Qe3 {[%clk 0:00:39]} 38. Rxb7 {[%clk 0:00:09]}  g5 {[%clk 0:00:37]} 39. Rdd7 {[%clk 0:00:08]}  g4 {[%clk 0:00:37]} 40. Rxh7+ {[%clk 0:00:07]}  Kg5 {[%clk 0:00:37]} 41. Rbg7+ {[%clk 0:00:06]}  Kf4 {[%clk 0:00:38]} 42. Bb7 {[%clk 0:00:02]}  Qe2+ {[%clk 0:00:36]} 43. Kg1 {[%clk 0:00:01]}  Qe3+ {[%clk 0:00:34]} 0-1


[Site "https://www.chess.com"]

[Event "Titled Tuesday Blitz November 29 Late 2022"]
[White "Barria Zuniga, Daniel"]
[Black "Yoo, Christopher Woojin"]
[WhiteFideId "3400816"]
[BlackFideId "30909694"]
[WhiteElo "2414"]
[BlackElo "2463"]
[Result "0-1"]
[Round "09"]
[TimeControl "180+1"]
[Date "2022.11.30"]
[WhiteClock "0:00:01"]
[BlackClock "0:00:15"]

1. c4 {[%clk 0:03:00]}  e5 {[%clk 0:02:58]} 2. g3 {[%clk 0:03:00]}  Nf6 {[%clk 0:02:55]} 3. Bg2 {[%clk 0:03:00]}  Bc5 {[%clk 0:02:55]} 4. Nc3 {[%clk 0:02:58]}  c6 {[%clk 0:02:56]} 5. Na4 {[%clk 0:02:53]}  Be7 {[%clk 0:02:45]} 6. Nf3 {[%clk 0:02:51]}  d6 {[%clk 0:02:34]} 7. O-O {[%clk 0:02:50]}  O-O {[%clk 0:02:33]} 8. Nc3 {[%clk 0:02:40]}  Be6 {[%clk 0:02:31]} 9. b3 {[%clk 0:02:38]}  Nbd7 {[%clk 0:02:26]} 10. d4 {[%clk 0:02:37]}  Re8 {[%clk 0:02:18]} 11. Ng5 {[%clk 0:02:21]}  Bf5 {[%clk 0:02:09]} 12. e4 {[%clk 0:02:17]}  Bg4 {[%clk 0:02:08]} 13. f3 {[%clk 0:02:12]}  exd4 {[%clk 0:02:07]} 14. Qxd4 {[%clk 0:02:09]}  Bh5 {[%clk 0:02:08]} 15. Kh1 {[%clk 0:01:56]}  d5 {[%clk 0:01:39]} 16. exd5 {[%clk 0:01:47]}  cxd5 {[%clk 0:01:39]} 17. Nxd5 {[%clk 0:01:44]}  Nxd5 {[%clk 0:01:39]} 18. Qxd5 {[%clk 0:01:44]}  Bf6 {[%clk 0:01:39]} 19. Bf4 {[%clk 0:01:20]}  Bxa1 {[%clk 0:01:35]} 20. Rxa1 {[%clk 0:01:21]}  Nf6 {[%clk 0:01:08]} 21. Qxb7 {[%clk 0:01:17]}  h6 {[%clk 0:01:05]} 22. Ne4 {[%clk 0:01:14]}  Nxe4 {[%clk 0:01:04]} 23. fxe4 {[%clk 0:01:15]}  Qd4 {[%clk 0:01:04]} 24. Re1 {[%clk 0:01:05]}  Rad8 {[%clk 0:01:04]} 25. h4 {[%clk 0:00:36]}  Qf2 {[%clk 0:00:59]} 26. Rf1 {[%clk 0:00:35]}  Qe2 {[%clk 0:00:51]} 27. Qxa7 {[%clk 0:00:29]}  Rd1 {[%clk 0:00:41]} 28. Rxd1 {[%clk 0:00:27]}  Qxd1+ {[%clk 0:00:42]} 29. Qg1 {[%clk 0:00:23]}  Qe2 {[%clk 0:00:37]} 30. c5 {[%clk 0:00:18]}  Qxa2 {[%clk 0:00:29]} 31. c6 {[%clk 0:00:17]}  Qxb3 {[%clk 0:00:27]} 32. c7 {[%clk 0:00:17]}  Bg4 {[%clk 0:00:25]} 33. Qc5 {[%clk 0:00:15]}  Qd1+ {[%clk 0:00:23]} 34. Kh2 {[%clk 0:00:15]}  Qe2 {[%clk 0:00:23]} 35. Qe3 {[%clk 0:00:13]}  Qc2 {[%clk 0:00:22]} 36. Bd6 {[%clk 0:00:11]}  Ra8 {[%clk 0:00:20]} 37. Qc5 {[%clk 0:00:01]}  Ra2 {[%clk 0:00:19]} 38. Qxc2 {[%clk 0:00:01]}  Rxc2 {[%clk 0:00:20]} 39. Kg1 {[%clk 0:00:01]}  Rc1+ {[%clk 0:00:15]} 0-1


[Site "https://www.chess.com"]

[Event "Titled Tuesday Blitz November 29 Late 2022"]
[White "Bas Mas, Jose Joaquin"]
[Black "Schuster, Karsten"]
[WhiteFideId "22219064"]
[BlackFideId "4611071"]
[WhiteElo "2233"]
[BlackElo "2294"]
[Result "1-0"]
[Round "09"]
[TimeControl "180+1"]
[Date "2022.11.30"]
[WhiteClock "0:00:29"]
[BlackClock "0:01:14"]

1. e4 {[%clk 0:03:00]}  c6 {[%clk 0:02:59]} 2. d4 {[%clk 0:02:47]}  d5 {[%clk 0:03:00]} 3. exd5 {[%clk 0:02:48]}  cxd5 {[%clk 0:03:00]} 4. Bd3 {[%clk 0:02:48]}  Nc6 {[%clk 0:03:00]} 5. c3 {[%clk 0:02:48]}  Nf6 {[%clk 0:03:00]} 6. Bf4 {[%clk 0:02:49]}  Bg4 {[%clk 0:03:00]} 7. Qb3 {[%clk 0:02:48]}  Qc8 {[%clk 0:03:01]} 8. Nd2 {[%clk 0:02:47]}  e6 {[%clk 0:03:01]} 9. Ngf3 {[%clk 0:02:47]}  Be7 {[%clk 0:03:00]} 10. O-O {[%clk 0:02:46]}  Bh5 {[%clk 0:03:00]} 11. Ne5 {[%clk 0:02:42]}  Nxe5 {[%clk 0:03:00]} 12. Bxe5 {[%clk 0:02:28]}  Bg6 {[%clk 0:02:53]} 13. Qa4+ {[%clk 0:02:23]}  Kf8 {[%clk 0:02:49]} 14. Be2 {[%clk 0:02:14]}  a6 {[%clk 0:02:48]} 15. Qb3 {[%clk 0:02:04]}  Qc6 {[%clk 0:02:41]} 16. a4 {[%clk 0:02:04]}  Nd7 {[%clk 0:02:37]} 17. Bf4 {[%clk 0:02:00]}  f6 {[%clk 0:02:28]} 18. Rfc1 {[%clk 0:01:59]}  Kf7 {[%clk 0:02:19]} 19. c4 {[%clk 0:01:53]}  Rhc8 {[%clk 0:02:17]} 20. Nf1 {[%clk 0:01:41]}  Qb6 {[%clk 0:02:00]} 21. Qxb6 {[%clk 0:01:25]}  Nxb6 {[%clk 0:02:00]} 22. c5 {[%clk 0:01:25]}  Nd7 {[%clk 0:01:58]} 23. b4 {[%clk 0:01:26]}  e5 {[%clk 0:01:56]} 24. dxe5 {[%clk 0:01:24]}  fxe5 {[%clk 0:01:55]} 25. Bg3 {[%clk 0:01:24]}  Bf6 {[%clk 0:01:55]} 26. Ne3 {[%clk 0:01:23]}  Ke6 {[%clk 0:01:42]} 27. Bg4+ {[%clk 0:01:21]}  Kf7 {[%clk 0:01:38]} 28. Bxd7 {[%clk 0:01:20]}  Rd8 {[%clk 0:01:37]} 29. c6 {[%clk 0:01:16]}  bxc6 {[%clk 0:01:35]} 30. Bxc6 {[%clk 0:01:17]}  Rab8 {[%clk 0:01:33]} 31. Bxd5+ {[%clk 0:01:16]}  Kf8 {[%clk 0:01:33]} 32. b5 {[%clk 0:01:03]}  axb5 {[%clk 0:01:32]} 33. a5 {[%clk 0:01:04]}  e4 {[%clk 0:01:30]} 34. Ra2 {[%clk 0:00:59]}  Rbc8 {[%clk 0:01:28]} 35. Rac2 {[%clk 0:00:54]}  Rxc2 {[%clk 0:01:27]} 36. Rxc2 {[%clk 0:00:55]}  b4 {[%clk 0:01:27]} 37. a6 {[%clk 0:00:51]}  Bd4 {[%clk 0:01:27]} 38. Bb3 {[%clk 0:00:37]}  Ra8 {[%clk 0:01:20]} 39. Rc6 {[%clk 0:00:32]}  Be8 {[%clk 0:01:14]} 40. Bd6# {[%clk 0:00:29]} 1-0


[Site "https://www.chess.com"]

[Event "Titled Tuesday Blitz November 29 Late 2022"]
[White "Bazeev, German"]
[Black "Annaberdiyev, Babageldi"]
[WhiteFideId "24119350"]
[BlackFideId "14000385"]
[WhiteElo "2493"]
[BlackElo "2332"]
[Result "0-1"]
[Round "09"]
[TimeControl "180+1"]
[Date "2022.11.30"]
[WhiteClock "0:00:02"]
[BlackClock "0:00:28"]

1. d4 {[%clk 0:02:53]}  e6 {[%clk 0:03:00]} 2. Nf3 {[%clk 0:02:51]}  f5 {[%clk 0:03:00]} 3. Bg5 {[%clk 0:02:49]}  Be7 {[%clk 0:02:59]} 4. Bxe7 {[%clk 0:02:48]}  Qxe7 {[%clk 0:03:00]} 5. g3 {[%clk 0:02:39]}  Nf6 {[%clk 0:03:00]} 6. Bg2 {[%clk 0:02:39]}  Qb4+ {[%clk 0:02:58]} 7. Nbd2 {[%clk 0:02:36]}  Qxb2 {[%clk 0:02:58]} 8. O-O {[%clk 0:02:37]}  O-O {[%clk 0:02:58]} 9. c4 {[%clk 0:02:36]}  Qb4 {[%clk 0:02:51]} 10. c5 {[%clk 0:02:35]}  Nc6 {[%clk 0:02:48]} 11. e3 {[%clk 0:02:33]}  d5 {[%clk 0:02:41]} 12. a4 {[%clk 0:02:12]}  Ne4 {[%clk 0:02:33]} 13. Rb1 {[%clk 0:02:04]}  Qc3 {[%clk 0:02:26]} 14. Rb3 {[%clk 0:01:28]}  Qa5 {[%clk 0:02:25]} 15. Nxe4 {[%clk 0:01:11]}  fxe4 {[%clk 0:02:23]} 16. Nd2 {[%clk 0:01:08]}  b6 {[%clk 0:02:13]} 17. Rb5 {[%clk 0:00:56]}  Qa6 {[%clk 0:02:11]} 18. Nxe4 {[%clk 0:00:54]}  dxe4 {[%clk 0:02:06]} 19. Bxe4 {[%clk 0:00:55]}  Bd7 {[%clk 0:02:06]} 20. Qh5 {[%clk 0:00:53]}  h6 {[%clk 0:01:56]} 21. Qg6 {[%clk 0:00:52]}  Ne7 {[%clk 0:01:56]} 22. Qh7+ {[%clk 0:00:38]}  Kf7 {[%clk 0:01:56]} 23. Bd3 {[%clk 0:00:37]}  Qxa4 {[%clk 0:01:52]} 24. Rbb1 {[%clk 0:00:34]}  Qc6 {[%clk 0:01:45]} 25. Bb5 {[%clk 0:00:29]}  Qd5 {[%clk 0:01:40]} 26. e4 {[%clk 0:00:27]}  Qg5 {[%clk 0:01:29]} 27. f4 {[%clk 0:00:22]}  Qg4 {[%clk 0:01:27]} 28. Bxd7 {[%clk 0:00:06]}  Rh8 {[%clk 0:01:26]} 29. Qxh8 {[%clk 0:00:06]}  Rxh8 {[%clk 0:01:26]} 30. d5 {[%clk 0:00:07]}  Kg6 {[%clk 0:01:15]} 31. Bxe6 {[%clk 0:00:07]}  Qe2 {[%clk 0:01:13]} 32. Rbe1 {[%clk 0:00:06]}  Qd2 {[%clk 0:01:11]} 33. c6 {[%clk 0:00:03]}  Rf8 {[%clk 0:01:06]} 34. Bg4 {[%clk 0:00:03]}  Kh7 {[%clk 0:01:03]} 35. Bf3 {[%clk 0:00:03]}  a5 {[%clk 0:00:59]} 36. Re2 {[%clk 0:00:03]}  Qd4+ {[%clk 0:00:55]} 37. Kg2 {[%clk 0:00:04]}  a4 {[%clk 0:00:55]} 38. Rff2 {[%clk 0:00:05]}  b5 {[%clk 0:00:51]} 39. Rd2 {[%clk 0:00:05]}  Qb6 {[%clk 0:00:49]} 40. e5 {[%clk 0:00:06]}  b4 {[%clk 0:00:47]} 41. Be4+ {[%clk 0:00:06]}  Kh8 {[%clk 0:00:45]} 42. f5 {[%clk 0:00:07]}  b3 {[%clk 0:00:43]} 43. f6 {[%clk 0:00:05]}  gxf6 {[%clk 0:00:37]} 44. exf6 {[%clk 0:00:06]}  Nc8 {[%clk 0:00:37]} 45. Rf4 {[%clk 0:00:04]}  Nd6 {[%clk 0:00:33]} 46. Bb1 {[%clk 0:00:04]}  a3 {[%clk 0:00:31]} 47. Re2 {[%clk 0:00:02]}  a2 {[%clk 0:00:28]} 0-1


[Site "https://www.chess.com"]

[Event "Titled Tuesday Blitz November 29 Late 2022"]
[White "Bjelobrk, Igor"]
[Black "Fernandez Guillen, Ernesto J."]
[WhiteFideId "4300726"]
[BlackFideId "3512428"]
[WhiteElo "2335"]
[BlackElo "2450"]
[Result "1-0"]
[Round "09"]
[TimeControl "180+1"]
[Date "2022.11.30"]
[WhiteClock "0:00:18"]
[BlackClock "0:00:01"]

1. Nf3 {[%clk 0:02:49]}  Nf6 {[%clk 0:02:59]} 2. c4 {[%clk 0:02:48]}  g6 {[%clk 0:02:58]} 3. Nc3 {[%clk 0:02:47]}  Bg7 {[%clk 0:02:58]} 4. e4 {[%clk 0:02:48]}  d6 {[%clk 0:02:58]} 5. d4 {[%clk 0:02:47]}  O-O {[%clk 0:02:58]} 6. h3 {[%clk 0:02:45]}  e5 {[%clk 0:02:58]} 7. d5 {[%clk 0:02:45]}  Nbd7 {[%clk 0:02:58]} 8. Be3 {[%clk 0:02:44]}  Nh5 {[%clk 0:02:52]} 9. g3 {[%clk 0:02:36]}  f5 {[%clk 0:02:40]} 10. exf5 {[%clk 0:02:35]}  gxf5 {[%clk 0:02:41]} 11. Qd2 {[%clk 0:02:34]}  f4 {[%clk 0:02:34]} 12. gxf4 {[%clk 0:02:33]}  exf4 {[%clk 0:01:51]} 13. Bd4 {[%clk 0:02:32]}  Qe8+ {[%clk 0:01:51]} 14. Be2 {[%clk 0:02:30]}  Bxd4 {[%clk 0:01:49]} 15. Qxd4 {[%clk 0:02:26]}  Ne5 {[%clk 0:01:49]} 16. Rg1+ {[%clk 0:02:23]}  Ng7 {[%clk 0:01:42]} 17. O-O-O {[%clk 0:02:22]}  Bf5 {[%clk 0:01:41]} 18. Rg5 {[%clk 0:01:41]}  h5 {[%clk 0:01:21]} 19. Rdg1 {[%clk 0:01:34]}  Rf7 {[%clk 0:01:21]} 20. Nh4 {[%clk 0:01:24]}  f3 {[%clk 0:01:03]} 21. Nxf5 {[%clk 0:01:20]}  fxe2 {[%clk 0:01:03]} 22. Rxg7+ {[%clk 0:00:54]}  Rxg7 {[%clk 0:00:35]} 23. Rxg7+ {[%clk 0:00:52]}  Kh8 {[%clk 0:00:35]} 24. Nxe2 {[%clk 0:00:51]}  Qf8 {[%clk 0:00:35]} 25. Neg3 {[%clk 0:00:47]}  Qf6 {[%clk 0:00:31]} 26. f4 {[%clk 0:00:40]}  Re8 {[%clk 0:00:22]} 27. fxe5 {[%clk 0:00:40]}  Rxe5 {[%clk 0:00:23]} 28. Qf4 {[%clk 0:00:27]}  Re1+ {[%clk 0:00:14]} 29. Kc2 {[%clk 0:00:27]}  Rg1 {[%clk 0:00:12]} 30. Re7 {[%clk 0:00:21]}  Rg2+ {[%clk 0:00:12]} 31. Re2 {[%clk 0:00:21]}  Rg1 {[%clk 0:00:09]} 32. Nxh5 {[%clk 0:00:19]}  Qg6 {[%clk 0:00:07]} 33. Ng3 {[%clk 0:00:18]}  Qf6 {[%clk 0:00:01]} 34. h4 {[%clk 0:00:18]}  Kh7 {[%clk 0:00:01]} 35. h5 {[%clk 0:00:18]}  Kh8 {[%clk 0:00:01]} 36. Ne4 {[%clk 0:00:18]} 1-0


[Site "https://www.chess.com"]